bitfinex-derivatives/quotes_SOLF0:USTF0_20250328
["timestamp","ask_amount","ask_price","bid_price","bid_amount"]
[1743171752921,7.6939,130.03,129.99,29.30022017]
[1743171753122,36.6048,130.1,129.99,29.30022017]
[1743171753323,36.6048,130.1,129.99,21.60472017]
[1743171754127,0.05460105,130.06,130.03,0.04991966]
[1743171754327,7.6928,130.04,130.03,0.04991966]
[1743171754925,39.8928,130.04,130.03,0.04991966]
[1743171755928,7.6954,130.0,129.97,25.56022017]
[1743171756230,32.2,130.04,129.96,4.1188]
[1743171756424,7.6955,130.0,129.96,4.1188]
[1743171756629,32.2,130.04,129.96,11.8162]
[1743171756933,32.2,130.04,129.97,21.60472017]
[1743171757128,7.74698828,130.01,129.99,0.05290363]
[1743171757632,0.05188828,130.01,129.99,0.05290363]
[1743171760027,7.74678828,130.01,129.99,0.05290363]
[1743171760232,0.05188828,130.01,129.99,0.05290363]
[1743171760531,7.74678828,130.01,129.99,0.05290363]
[1743171760934,0.05188828,130.01,129.99,0.05290363]
[1743171761334,7.6952,130.0,129.99,0.05290363]
[1743171762729,7.74668828,130.01,129.99,0.05290363]
[1743171763136,0.05188828,130.01,129.99,0.05290363]
[1743171764334,7.6952,130.0,129.99,0.05290363]
[1743171765637,7.74668828,130.01,129.99,0.05290363]
[1743171765837,0.05188828,130.01,129.99,0.05290363]
[1743171766331,7.6952,130.0,129.99,0.05290363]
[1743171766536,7.6952,130.0,129.93,25.88922017]
[1743171766537,31.82,130.0,129.93,25.88922017]
[1743171766733,31.82,130.0,129.93,57.70922017]
[1743171766934,31.82,130.0,129.95,21.60472017]
[1743171767438,31.82,130.0,129.9,214.0409]
[1743171767628,0.05238358,129.97,129.94,0.05403986]
[1743171767829,7.6981,129.95,129.94,0.05403986]
[1743171769540,7.6978,129.96,129.94,0.05403986]
[1743171770036,7.6981,129.95,129.94,0.05403986]
[1743171771634,0.05238358,129.97,129.94,0.05403986]
[1743171772338,39.9271,130.03,129.95,21.60472017]
[1743171772538,39.9271,130.03,129.97,21.60472017]
[1743171772744,7.695,130.01,129.98,7.6962]
[1743171773339,7.6952,130.0,129.98,7.75288776]
[1743171773844,7.750845,130.01,129.98,7.75288776]
[1743171774043,7.750845,130.01,129.99,7.6957]
[1743171774741,7.750845,130.01,129.98,0.05668776]
[1743171774943,7.6953,130.0,129.98,0.05668776]
[1743171775239,0.055945,130.01,129.99,7.6958]
[1743171775441,0.055945,130.01,129.98,0.05668776]
[1743171775642,7.750845,130.01,129.98,0.05668776]
[1743171775845,7.750845,130.01,129.99,7.6957]
[1743171776042,0.055945,130.01,129.99,21.60472017]
[1743171776343,0.055945,130.01,130.0,7.6952]
[1743171776542,0.055945,130.01,129.98,0.05668776]
[1743171776543,7.6958,129.99,129.98,0.05668776]
[1743171778237,0.055945,130.01,129.93,21.60472017]
[1743171778542,4.1907,130.01,129.91,21.60472017]
[1743171778744,7.6966,129.98,129.94,7.6986]
[1743171779040,7.6966,129.98,129.93,21.60472017]
[1743171779041,4.1907,130.01,129.93,21.60472017]
[1743171779240,7.6979,129.96,129.91,21.60472017]
[1743171779643,0.04875761,129.95,129.92,0.05933084]
[1743171779845,0.04875761,129.95,129.92,7.75893084]
[1743171780039,7.74705761,129.95,129.92,7.75893084]
[1743171780344,0.04875761,129.95,129.92,0.05933084]
[1743171780547,7.6987,129.94,129.92,0.05933084]
[1743171780748,0.04875761,129.95,129.92,0.05933084]
[1743171782446,7.6993,129.93,129.92,0.05933084]
[1743171783041,0.04875761,129.95,129.92,0.05933084]
[1743171783942,7.6993,129.93,129.92,0.05933084]
[1743171786746,31.52,129.94,129.86,39.8102]
[1743171786957,31.52,129.94,129.86,8.3302]
[1743171787251,31.52,129.94,129.85,214.0409]
[1743171787446,8.144,129.93,129.85,214.0409]
[1743171787651,8.144,129.93,129.82,50.41287855]
[1743171787652,7.7025,129.88,129.82,50.41287855]
[1743171787847,31.44,129.89,129.88,0.0490725]
[1743171788151,31.49738153,129.9,129.87,0.05034158]
[1743171788347,31.44,129.9,129.84,21.60472017]
[1743171788552,31.49642757,129.9,129.87,0.05090615]
[1743171788754,7.702,129.89,129.87,0.05090615]
[1743171789353,7.7023,129.88,129.87,0.05090615]
[1743171790466,0.05642757,129.9,129.87,0.05090615]
[1743171791050,0.05642757,129.9,129.88,13.44147187]
[1743171791550,0.05642757,129.9,129.88,21.14327187]
[1743171791761,0.05642757,129.9,129.88,13.44147187]
[1743171792047,31.42,129.97,129.89,31.44]
[1743171792250,31.42,129.97,129.91,13.44147187]
[1743171792856,31.42,129.97,129.9,7.701]
[1743171793056,7.6996,129.93,129.89,61.27252691]
[1743171793255,7.6996,129.93,129.92,0.05670164]
[1743171793452,31.42,129.97,129.92,0.05670164]
[1743171793657,0.04889504,129.94,129.92,0.05670164]
[1743171794158,0.04889504,129.94,129.92,7.75630164]
[1743171794357,0.04889504,129.94,129.92,0.05670164]
[1743171794857,7.74789504,129.94,129.92,0.05670164]
[1743171795157,7.6993,129.93,129.92,0.05670164]
[1743171797557,7.74789504,129.94,129.92,0.05670164]
[1743171797858,0.04889504,129.94,129.92,0.05670164]
[1743171798550,7.6993,129.93,129.92,0.05670164]
[1743171799148,7.702,129.89,129.86,31.44]
[1743171799452,7.702,129.89,129.85,39.7701]
[1743171799756,4.1015,129.93,129.85,39.7701]
[1743171800260,7.7003,129.92,129.88,7.7018]
[1743171800461,0.05713281,129.9,129.88,7.75964909]
[1743171800664,0.05713281,129.9,129.89,7.7017]
[1743171801359,0.05713281,129.9,129.88,0.05784909]
[1743171803863,35.4015,129.97,129.89,52.79852691]
[1743171804064,35.4015,129.97,129.89,31.3]
[1743171804366,35.4015,129.97,129.87,21.49852691]
[1743171804569,4.2054,129.96,129.87,29.20102691]
[1743171804951,0.05836252,129.93,129.9,0.05844698]
[1743171805165,7.7005,129.91,129.9,0.05844698]
[1743171807471,7.7026,129.88,129.85,7.7038]
[1743171807768,7.7026,129.88,129.83,114.79852691]
[1743171807972,7.7026,129.88,129.82,8.5387]
[1743171807973,7.7045,129.85,129.82,8.5387]
[1743171808173,31.28,129.89,129.79,245.3209]
[1743171808363,31.28,129.89,129.8,21.49852691]
[1743171808666,7.7052,129.84,129.83,0.05667925]
[1743171809069,0.05544102,129.86,129.83,0.05667925]
[1743171809577,36.89442691,129.96,129.84,21.49852691]
[1743171809867,39.6859,129.95,129.84,21.49852691]
[1743171810267,36.89642691,129.94,129.82,52.79852691]
[1743171810664,7.7031,129.87,129.83,7.7047]
[1743171811169,0.05701688,129.86,129.84,0.05227836]
[1743171811969,0.05701688,129.86,129.84,21.55080527]
[1743171812165,31.3,129.9,129.84,21.55080527]
[1743171812166,31.28,129.93,129.84,21.55080527]
[1743171812370,31.28,129.93,129.86,21.49852691]
[1743171812670,31.28,129.93,129.84,21.49852691]
[1743171812975,7.7017,129.89,129.86,7.7032]
[1743171813272,0.05584383,129.89,129.86,0.05752947]
[1743171813572,0.05584383,129.89,129.88,7.7023]
[1743171814473,8.3459,129.95,129.88,21.49852691]
[1743171815081,8.3459,129.95,129.9,13.43743926]
[1743171815581,0.05853514,129.94,129.91,0.05220013]
[1743171815881,7.7005,129.92,129.91,0.05220013]
[1743171816080,0.05853514,129.94,129.91,0.05220013]
[1743171816381,7.6998,129.93,129.91,0.05220013]
[1743171816589,0.05853514,129.94,129.91,0.05220013]
[1743171817179,0.05853514,129.94,129.92,13.43743926]
[1743171818271,0.05853514,129.94,129.93,7.6993]
[1743171818582,4.0585,129.99,129.92,13.43743926]
[1743171818875,4.0585,129.99,129.94,13.43743926]
[1743171819283,31.28,130.0,129.94,13.43743926]
[1743171819786,8.2727,130.04,129.98,21.13383926]
[1743171819787,7.6948,130.01,129.98,21.13383926]
[1743171820075,39.5727,130.04,129.98,21.13383926]
[1743171820283,7.75047894,130.01,129.98,21.18965619]
[1743171820485,0.05547894,130.01,129.98,13.49325619]
[1743171820986,7.6957,130.0,129.98,13.49325619]
[1743171821290,0.05547894,130.01,129.98,0.05581693]
[1743171821486,7.6958,129.99,129.98,0.05581693]
[1743171822582,31.24,130.0,129.98,0.05581693]
[1743171822779,0.05547894,130.01,129.98,0.05581693]
[1743171823887,7.6957,130.0,129.98,0.05581693]
[1743171824486,0.05547894,130.01,129.98,0.05581693]
[1743171824690,7.6958,129.99,129.98,0.05581693]
[1743171826988,7.6958,129.99,129.98,1.693e-05]
[1743171827191,13.43743926,129.99,129.91,235.66383926]
[1743171827379,31.14,130.0,129.91,235.66383926]
[1743171827583,7.6979,129.96,129.91,235.66383926]
[1743171827786,31.14,130.0,129.91,235.66383926]
[1743171827987,31.14,130.0,129.91,21.62293926]
[1743171828183,0.05217412,129.97,129.91,21.62293926]
[1743171828389,31.18,129.96,129.94,0.04955894]
[1743171828588,39.7424,129.96,129.89,13.43743926]
[1743171829595,39.7424,129.96,129.89,21.13883926]
[1743171829792,0.05672274,129.94,129.91,0.05545586]
[1743171829992,7.6993,129.93,129.91,0.05545586]
[1743171830288,0.05672274,129.94,129.91,0.05545586]
[1743171830690,7.6999,129.92,129.91,0.05545586]
[1743171831390,7.7021,129.89,129.86,4.0056]
[1743171832091,31.2,129.93,129.86,13.43743926]
[1743171832294,31.2,129.93,129.84,285.12]
[1743171832295,31.2,129.93,129.88,13.43743926]
[1743171832589,7.75226321,129.92,129.89,0.05424885]
[1743171833093,7.75226321,129.92,129.89,7.75564885]
[1743171833795,0.05226321,129.92,129.9,13.43743926]
[1743171834493,31.14,129.99,129.91,31.12]
[1743171834693,31.14,129.99,129.92,13.43743926]
[1743171835095,31.14,129.99,129.92,21.13703926]
[1743171835291,44.55743926,130.0,129.92,13.43743926]
[1743171835494,7.6985,129.95,129.92,21.13703926]
[1743171835800,7.6985,129.95,129.92,21.19415041]
[1743171836893,0.04900066,129.97,129.94,13.43743926]
[1743171837402,0.04900066,129.97,129.92,13.49455041]
[1743171838401,7.6984,129.95,129.92,13.49455041]
[1743171838600,0.04900066,129.97,129.92,13.49455041]
[1743171839001,7.6978,129.96,129.93,7.699]
[1743171839194,0.04900066,129.97,129.92,13.49455041]
[1743171839399,0.04900066,129.97,129.94,13.43743926]
[1743171840302,0.04900066,129.97,129.92,13.49455041]
[1743171841299,0.04900066,129.97,129.94,13.43743926]
[1743171841501,0.04900066,129.97,129.92,0.05711115]
[1743171841701,0.04900066,129.97,129.92,13.49455041]
[1743171842499,7.699,129.94,129.92,13.49455041]
[1743171842708,30.96,129.97,129.92,0.05711115]
[1743171842902,0.0498884,129.94,129.92,0.05711115]
[1743171843098,7.7490884,129.94,129.92,0.05711115]
[1743171843405,0.0498884,129.94,129.92,13.49455041]
[1743171843605,0.0498884,129.94,129.92,0.05711115]
[1743171844704,31.0098884,129.94,129.92,0.05711115]
[1743171845107,7.6993,129.93,129.92,0.05711115]
[1743171845813,31.0098884,129.94,129.84,467.9809]
[1743171845814,44.44732766,129.94,129.84,13.43743926]
[1743171846003,13.43743926,129.92,129.82,4.1427]
[1743171846203,30.96,129.91,129.83,21.14233926]
[1743171847011,7.7034,129.87,129.86,0.04913843]
[1743171847509,7.7034,129.87,129.79,13.43743926]
[1743171847510,7.706,129.82,129.79,13.43743926]
[1743171847698,30.96,129.87,129.79,13.43743926]
[1743171848209,30.96,129.87,129.79,21.14473926]
[1743171848608,7.7056,129.83,129.82,0.0539957]
[1743171850600,31.01425672,129.84,129.82,0.0539957]
[1743171850904,0.05425672,129.84,129.82,7.7597957]
[1743171851111,7.75895672,129.84,129.82,0.0539957]
[1743171851410,0.05425672,129.84,129.82,7.7596957]
[1743171851611,0.05425672,129.84,129.82,0.0539957]
[1743171852113,0.05425672,129.84,129.83,7.7053]
[1743171852310,0.05425672,129.84,129.82,0.0539957]
[1743171852707,0.05425672,129.84,129.83,7.7053]
[1743171852912,30.98,129.89,129.82,0.0539957]
[1743171853210,30.98,129.89,129.82,39.2494]
[1743171853913,0.055714,129.87,129.84,0.05592194]
[1743171854408,7.7041,129.85,129.84,0.05592194]
[1743171856409,7.7041,129.85,129.84,2.194e-05]
[1743171860017,16.0535,129.85,129.84,2.194e-05]
[1743171862816,37.58885086,129.85,129.84,2.194e-05]
[1743171863015,29.88475086,129.85,129.76,8.3765]
[1743171863408,29.88475086,129.85,129.77,7.7086]
[1743171863612,7.7062,129.82,129.76,8.3765]
[1743171863919,7.7062,129.82,129.78,7.7079]
[1743171864119,0.05024102,129.8,129.78,7.76660331]
[1743171864619,0.05024102,129.8,129.78,0.05870331]
[1743171865219,7.75754102,129.8,129.78,0.05870331]
[1743171866020,0.05024102,129.8,129.78,7.76690331]
[1743171866212,0.05024102,129.8,129.78,0.05870331]
[1743171866913,7.7076,129.79,129.78,0.05870331]
[1743171869120,7.75754102,129.8,129.78,7.76690331]
[1743171869325,7.75754102,129.8,129.78,0.05870331]
[1743171869519,31.03024102,129.8,129.69,21.53535086]
[1743171869819,30.98,129.8,129.69,30.17145086]
[1743171870223,7.7114,129.73,129.69,30.17145086]
[1743171870820,0.05930343,129.72,129.7,0.05569216]
[1743171871011,0.05930343,129.72,129.71,13.47568778]
[1743171871721,0.05930343,129.72,129.7,0.05569216]
[1743171871722,7.7124,129.71,129.7,0.05569216]
[1743171871911,0.05930343,129.72,129.7,0.05569216]
[1743171872115,7.77170343,129.72,129.7,0.05569216]
[1743171872521,0.05930343,129.72,129.71,13.47568778]
[1743171874925,7.77110343,129.72,129.71,13.47568778]
[1743171875421,7.7124,129.71,129.7,0.05569216]
[1743171876426,0.05930343,129.72,129.65,17.58538778]
[1743171876725,44.47568778,129.74,129.65,17.58538778]
[1743171876923,44.47568778,129.74,129.65,4.1097]
[1743171876924,31.0,129.74,129.65,4.1097]
[1743171877316,31.0,129.74,129.68,0.05286113]
[1743171877621,7.7136,129.69,129.68,0.05286113]
[1743171879023,31.05807708,129.71,129.63,4.2938]
[1743171879215,31.0,129.71,129.63,4.2938]
[1743171879415,7.716,129.65,129.63,4.2938]
[1743171880017,0.04896659,129.65,129.63,4.34931933]
[1743171880421,7.7139,129.69,129.66,7.7152]
[1743171880623,7.7139,129.69,129.67,31.0]
[1743171880832,7.7139,129.69,129.67,34.9228]
[1743171881629,7.77190344,129.69,129.67,34.98075983]
[1743171882219,31.0,129.76,129.68,21.57776947]
[1743171882729,7.7136,129.69,129.68,21.57776947]
[1743171882928,31.0,129.76,129.67,34.9228]
[1743171883330,0.05176207,129.73,129.7,0.05606911]
[1743171883732,7.7124,129.71,129.7,0.05606911]
[1743171886930,7.7121,129.72,129.7,31.05606911]
[1743171887135,0.05176207,129.73,129.7,31.05606911]
[1743171887934,7.7124,129.71,129.7,31.05606911]
[1743171888631,7.7121,129.72,129.7,31.05606911]
[1743171888832,0.05176207,129.73,129.7,52.63383858]
[1743171889032,0.05176207,129.73,129.7,60.34653858]
[1743171889231,7.7118,129.72,129.7,52.63383858]
[1743171889935,7.76326207,129.73,129.7,52.63383858]
[1743171890136,7.76326207,129.73,129.71,7.7124]
[1743171890339,7.76326207,129.73,129.7,52.63383858]
[1743171890837,7.76326207,129.73,129.7,60.34643858]
[1743171892236,0.05176207,129.73,129.71,7.7123]
[1743171892839,0.05176207,129.73,129.72,7.7118]
[1743171893044,0.05176207,129.73,129.72,29.28956947]
[1743171893939,4.0566,129.82,129.72,21.57776947]
[1743171894140,4.0566,129.82,129.74,21.57776947]
[1743171894641,7.7091,129.77,129.74,33.25616947]
[1743171895041,7.76441391,129.77,129.74,33.31165625]
[1743171895336,0.05531391,129.77,129.75,7.7096]
[1743171895641,0.05531391,129.77,129.76,31.0]
[1743171896344,7.76411391,129.77,129.76,31.0]
[1743171897034,0.05531391,129.77,129.76,31.0]
[1743171897643,0.05531391,129.77,129.76,38.7094]
[1743171897844,0.05531391,129.77,129.76,7.7094]
[1743171898338,0.05531391,129.77,129.75,13.46629772]
[1743171898739,7.76441391,129.77,129.75,21.17619772]
[1743171898942,0.05531391,129.77,129.75,13.46629772]
[1743171899546,0.05531391,129.77,129.76,7.7094]
[1743171901543,0.05531391,129.77,129.75,13.46629772]
[1743171901745,0.05531391,129.77,129.74,0.05548678]
[1743171902147,7.713,129.7,129.67,312.88794957]
[1743171902345,13.46629772,129.76,129.69,13.46629772]
[1743171902539,7.7128,129.71,129.69,13.46629772]
[1743171902745,4.3296,129.77,129.69,13.46629772]
[1743171903038,7.7102,129.75,129.69,13.46629772]
[1743171903239,0.05882221,129.74,129.72,0.05370611]
[1743171903745,7.7112,129.73,129.72,0.05370611]
[1743171903952,13.52511993,129.74,129.68,85.38075185]
[1743171904146,7.7136,129.69,129.68,85.38075185]
[1743171904848,13.46629772,129.69,129.61,107.28644957]
[1743171905045,13.46629772,129.69,129.61,93.82015185]
[1743171905245,0.05189056,129.66,129.64,0.04998195]
[1743171906044,7.716,129.65,129.64,0.04998195]
[1743171906647,0.05189056,129.66,129.64,0.04998195]
[1743171907852,7.716,129.65,129.64,0.04998195]
[1743171908448,0.05189056,129.66,129.56,29.78968114]
[1743171908649,21.58088114,129.64,129.56,8.2088]
[1743171908846,21.58088114,129.64,129.55,106.20509603]
[1743171909352,21.58088114,129.62,129.55,106.20509603]
[1743171909548,7.7213,129.56,129.55,106.20509603]
[1743171910252,0.05055422,129.57,129.55,106.20509603]
[1743171910555,21.58088114,129.64,129.54,21.58088114]
[1743171910755,0.0508213,129.57,129.55,0.05399117]
[1743171911050,37.00758114,129.7,129.56,21.58088114]
[1743171911251,8.2634,129.69,129.62,21.58088114]
[1743171911846,7.7151,129.67,129.64,21.58088114]
[1743171912560,0.05772773,129.67,129.64,21.63332684]
[1743171913151,8.4422,129.76,129.66,21.58088114]
[1743171913555,21.58088114,129.74,129.62,21.58088114]
[1743171913755,21.58088114,129.72,129.62,21.58088114]
[1743171913953,21.58088114,129.72,129.61,222.4672]
[1743171914255,0.0532296,129.68,129.61,222.4672]
[1743171914445,0.0532296,129.68,129.63,0.05284604]
[1743171915157,7.7163,129.65,129.63,0.05284604]
[1743171915355,21.58088114,129.72,129.63,0.05284604]
[1743171915560,0.05578863,129.65,129.62,21.58088114]
[1743171915756,21.58088114,129.72,129.66,0.05090096]
[1743171915955,37.00228114,129.74,129.64,21.58088114]
[1743171916155,0.04912941,129.7,129.64,21.58088114]
[1743171916355,0.04912941,129.7,129.68,0.05616948]
[1743171916658,7.7136,129.69,129.68,0.05616948]
[1743171918763,0.04912941,129.7,129.68,0.05616948]
[1743171918956,0.04912941,129.7,129.68,21.63705062]
[1743171919155,0.04912941,129.7,129.68,0.05616948]
[1743171919359,7.7136,129.69,129.68,0.05616948]
[1743171920060,0.04912941,129.7,129.68,0.05616948]
[1743171920659,7.7136,129.69,129.68,0.05616948]
[1743171921362,7.76242941,129.7,129.68,0.05616948]
[1743171921760,7.76242941,129.7,129.68,21.63705062]
[1743171922662,8.4422,129.76,129.68,21.63705062]
[1743171922859,8.4422,129.76,129.68,21.58088114]
[1743171923063,7.7122,129.72,129.68,29.29478114]
[1743171923663,4.235,129.76,129.7,21.58088114]
[1743171923863,0.05685072,129.71,129.7,21.58088114]
[1743171924163,0.05842151,129.72,129.7,29.29388114]
[1743171924564,0.05842151,129.72,129.7,21.62948055]
[1743171924760,7.77022151,129.72,129.7,21.62948055]
[1743171924965,0.05842151,129.72,129.7,21.62948055]
[1743171925161,0.05842151,129.72,129.7,29.34228055]
[1743171925661,0.05842151,129.72,129.7,21.62948055]
[1743171925868,7.77032151,129.72,129.7,21.62948055]
[1743171926667,4.0402,129.83,129.71,21.58088114]
[1743171926864,8.3022,129.83,129.75,21.58088114]
[1743171927064,8.3022,129.83,129.77,21.58088114]
[1743171927266,8.3022,129.83,129.75,21.58088114]
[1743171927563,7.7089,129.77,129.75,21.58088114]
[1743171927764,8.3022,129.83,129.75,21.58088114]
[1743171927963,8.3022,129.83,129.77,21.58088114]
[1743171928158,0.05344922,129.8,129.79,21.58088114]
[1743171928358,8.236,129.87,129.79,21.63394807]
[1743171928559,8.236,129.87,129.79,21.58088114]
[1743171928764,7.7062,129.82,129.79,29.28838114]
[1743171928964,8.236,129.87,129.79,29.28838114]
[1743171929163,8.236,129.87,129.79,21.58088114]
[1743171929564,0.05711593,129.84,129.82,0.05673159]
[1743171929764,7.7053,129.83,129.82,0.05673159]
[1743171931469,0.05711593,129.84,129.82,0.05673159]
[1743171931470,7.76201593,129.84,129.82,0.05673159]
[1743171931770,0.05711593,129.84,129.82,0.05673159]
[1743171932565,15.4003,129.92,129.83,21.58088114]
[1743171932766,7.7025,129.88,129.85,21.58088114]
[1743171932968,8.091,129.92,129.85,29.28468114]
[1743171933169,8.091,129.92,129.85,21.58088114]
[1743171933671,0.04947532,129.9,129.87,0.05201111]
[1743171933862,7.7017,129.89,129.87,0.05201111]
[1743171934564,7.7023,129.88,129.87,0.05201111]
[1743171936473,0.04947532,129.9,129.8,8.2038]
[1743171936772,21.58088114,129.91,129.81,7.7061]
[1743171936968,7.705,129.84,129.81,7.7061]
[1743171937462,7.75685528,129.84,129.81,7.76293576]
[1743171937665,0.05185528,129.84,129.81,0.05683576]
[1743171938072,0.05185528,129.84,129.82,7.7055]
[1743171938470,0.05185528,129.84,129.81,0.05683576]
[1743171938667,7.75675528,129.84,129.81,7.76313576]
[1743171938872,7.75675528,129.84,129.81,0.05683576]
[1743171939068,0.05185528,129.84,129.81,0.05683576]
[1743171939372,8.091,129.92,129.83,21.58088114]
[1743171939373,7.7038,129.86,129.83,21.58088114]
[1743171939773,7.7038,129.86,129.83,29.28588114]
[1743171940474,7.7041,129.85,129.83,0.05379808]
[1743171941175,7.7041,129.85,129.83,7.75909808]
[1743171941370,7.75412795,129.86,129.83,7.75909808]
[1743171942472,7.75412795,129.86,129.85,7.7041]
[1743171942473,0.05042795,129.86,129.85,7.7041]
[1743171943377,0.05042795,129.86,129.83,21.63467922]
[1743171944765,0.05042795,129.86,129.84,7.7042]
[1743171945173,0.05042795,129.86,129.83,21.63467922]
[1743171945877,0.05042795,129.86,129.85,7.7041]
[1743171946480,8.091,129.92,129.87,7.7026]
[1743171946679,8.091,129.92,129.85,21.58088114]
[1743171947276,7.7026,129.88,129.85,29.28448114]
[1743171947473,15.3899,130.01,129.87,21.58088114]
[1743171947668,15.3899,130.01,129.86,1.54012012]
[1743171947669,41.27598114,130.01,129.9,21.58088114]
[1743171947869,0.04938385,129.95,129.9,21.58088114]
[1743171948071,7.74798385,129.95,129.94,0.05560332]
[1743171948375,7.74798385,129.95,129.93,0.05207931]
[1743171948778,0.04938385,129.95,129.93,7.75137931]
[1743171949288,0.04938385,129.95,129.94,29.27958114]
[1743171949581,7.6961,129.99,129.94,29.27958114]
[1743171949582,3.9722,130.0,129.94,21.58088114]
[1743171950483,3.9722,130.0,129.92,21.58088114]
[1743171950682,0.05191752,129.98,129.96,8.571e-05]
[1743171951082,7.75191752,129.98,129.96,8.571e-05]
[1743171951473,7.697,129.97,129.96,8.571e-05]
[1743171954099,7.74861752,129.98,129.96,8.571e-05]
[1743171954397,0.05191752,129.98,129.96,8.571e-05]
[1743171954599,7.74831752,129.98,129.96,8.571e-05]
[1743171955199,0.05191752,129.98,129.96,8.571e-05]
[1743171956295,7.74861752,129.98,129.96,8.571e-05]
[1743171956997,0.05191752,129.98,129.96,8.571e-05]
[1743171957199,7.697,129.97,129.96,8.571e-05]
[1743171957593,11.8637,129.97,129.96,8.571e-05]
[1743171960202,7.697,129.97,129.96,8.571e-05]
[1743171961002,11.8487,129.97,129.96,8.571e-05]
[1743171964004,25.73258114,129.97,129.87,4.2328]
[1743171964702,4.1517,129.97,129.87,4.2328]
[1743171965205,4.1517,129.97,129.91,5.574e-05]
[1743171965206,0.05761652,129.93,129.91,5.574e-05]
[1743171965399,21.63849766,129.93,129.91,5.574e-05]
[1743171965594,7.6999,129.92,129.91,5.574e-05]
[1743171966400,7.7041,129.85,129.84,85.38075185]
[1743171966704,21.58088114,129.86,129.82,213.45187964]
[1743171967004,21.58088114,129.95,129.82,213.45187964]
[1743171967005,1.33928571,130.07,129.85,21.58088114]
[1743171967307,21.58088114,129.99,129.87,21.58088114]
[1743171967508,8.2485,129.98,129.87,21.58088114]
[1743171967802,0.04894313,129.94,129.92,0.05569293]
[1743171968003,7.6993,129.93,129.92,0.05569293]
[1743171969500,0.04894313,129.94,129.92,21.58088114]
[1743171969703,0.04894313,129.94,129.91,7.7004]
[1743171969903,0.04894313,129.94,129.89,21.58088114]
[1743171970212,22.77878114,130.02,129.94,7.6984]
[1743171970406,7.6967,129.98,129.94,7.6984]
[1743171970713,1.1979,130.02,129.93,7.699]
[1743171970901,7.698,129.96,129.92,21.58088114]
[1743171971304,0.05591317,129.95,129.93,0.0566016]
[1743171971505,7.6979,129.96,129.92,21.58088114]
[1743171971703,0.05390945,129.95,129.93,0.05082048]
[1743171973107,1.1979,130.02,129.94,21.58088114]
[1743171973416,10.39178363,130.05,129.94,21.58088114]
[1743171973599,10.39178363,130.05,129.96,21.58088114]
[1743171973798,7.695,130.01,129.97,7.6967]
[1743171974003,10.39178363,130.05,129.96,21.58088114]
[1743171974309,0.05890262,130.0,129.98,0.05285764]
[1743171974609,7.6955,130.0,129.98,0.05285764]
[1743171974806,0.04871051,130.0,129.98,0.05285764]
[1743171976013,7.6958,129.99,129.98,0.05285764]
[1743171978405,0.04871051,130.0,129.98,0.05285764]
[1743171978602,45.61273452,130.06,129.98,21.63373878]
[1743171978808,45.61273452,130.06,130.01,21.58088114]
[1743171979009,7.694,130.02,130.01,21.58088114]
[1743171979305,45.61273452,130.06,129.99,21.58088114]
[1743171979508,7.6953,130.0,129.99,21.58088114]
[1743171979713,0.04885421,130.04,130.01,0.05290083]
[1743171980209,7.6945,130.02,130.01,0.0497109]
[1743171981516,7.6936,130.03,130.01,21.63059204]
[1743171982008,7.694,130.02,130.01,21.63059204]
[1743171982507,7.694,130.02,130.01,0.0497109]
[1743171982714,0.05639862,130.04,130.01,0.0497109]
[1743171983214,0.05639862,130.04,129.94,21.58088114]
[1743171983407,3.9685,130.04,129.94,21.58088114]
[1743171983609,7.6949,130.01,129.97,7.6966]
[1743171983812,3.9685,130.04,129.96,21.58088114]
[1743171984111,7.6953,130.0,129.96,29.27808114]
[1743171984311,7.6953,130.0,129.99,0.05115066]
[1743171986408,0.05583688,130.01,129.99,0.05115066]
[1743171986914,7.75083688,130.01,129.99,0.05115066]
[1743171987114,0.05583688,130.01,129.99,0.05115066]
[1743171987614,7.6952,130.0,129.99,0.05115066]
[1743171990421,7.6977,129.96,129.94,21.58088114]
[1743171991219,4.1218,130.03,129.94,21.58088114]
[1743171991717,7.6964,129.98,129.97,0.05695614]
[1743171992213,7.6963,129.99,129.97,0.05695614]
[1743171992412,0.05289428,130.0,129.97,0.05695614]
[1743171992719,7.6964,129.98,129.97,0.05695614]
[1743171993021,0.05289428,130.0,129.97,0.05695614]
[1743171993423,7.6964,129.98,129.97,0.05695614]
[1743171994917,7.696,129.99,129.97,0.05695614]
[1743171995111,0.05289428,130.0,129.97,0.05695614]
[1743171995918,7.6958,129.99,129.97,0.05695614]
[1743171996124,0.05289428,130.0,129.97,0.05695614]